[Event "*** Titled Tuesday Blitz"]
[Site "Chess.com"]
[Date "2020.11.10"]
[Round "9"]
[White "ChelsieMonica"]
[Black "PriSachu"]
[Result "1-0"]
[WhiteElo "2368"]
[BlackElo "2499"]
[TimeControl "180+1"]
[EndTime "11:51:43 PST"]
[Termination "ChelsieMonica won by resignation"]

1. c4 {[%clk 0:03:00.9]} 1... Nf6 {[%clk 0:02:59.5]} 2. Nf3 {[%clk 0:03:00.8]}
2... g6 {[%clk 0:03:00.1]} 3. g3 {[%clk 0:03:01.4]} 3... Bg7 {[%clk 0:03:00.8]}
4. Bg2 {[%clk 0:03:02]} 4... O-O {[%clk 0:03:01.5]} 5. O-O {[%clk 0:03:02.8]}
5... d6 {[%clk 0:03:01.2]} 6. Nc3 {[%clk 0:03:03.2]} 6... Nc6 {[%clk 0:03:01.7]}
7. d4 {[%clk 0:03:04.1]} 7... e5 {[%clk 0:03:01.8]} 8. d5 {[%clk 0:03:05]} 8...
Nb8 {[%clk 0:03:01.8]} 9. Nd2 {[%clk 0:03:05.6]} 9... a5 {[%clk 0:03:02.3]} 10.
e4 {[%clk 0:03:05.1]} 10... Na6 {[%clk 0:03:02.8]} 11. a4 {[%clk 0:02:46.1]}
11... Nd7 {[%clk 0:03:01]} 12. Nb5 {[%clk 0:02:38.2]} 12... Ndc5 {[%clk
0:03:00.1]} 13. Nb3 {[%clk 0:02:36.7]} 13... f5 {[%clk 0:02:59.2]} 14. Nxc5
{[%clk 0:02:35.5]} 14... Nxc5 {[%clk 0:02:58]} 15. Be3 {[%clk 0:02:33.3]} 15...
b6 {[%clk 0:02:58.2]} 16. Bxc5 {[%clk 0:02:33]} 16... bxc5 {[%clk 0:02:59.1]}
17. Ra3 {[%clk 0:02:31.2]} 17... f4 {[%clk 0:02:58.4]} 18. g4 {[%clk 0:02:30.1]}
18... f3 {[%clk 0:02:48.6]} 19. Rxf3 {[%clk 0:02:28]} 19... Rxf3 {[%clk
0:02:47.4]} 20. Qxf3 {[%clk 0:02:28.9]} 20... Bd7 {[%clk 0:02:47.6]} 21. Qe3
{[%clk 0:02:24.9]} 21... Qh4 {[%clk 0:02:46]} 22. h3 {[%clk 0:02:18.4]} 22...
Bxb5 {[%clk 0:02:42.5]} 23. cxb5 {[%clk 0:02:16.7]} 23... Bh6 {[%clk 0:02:40.8]}
24. Qg3 {[%clk 0:02:16.5]} 24... Qf6 {[%clk 0:02:40.9]} 25. h4 {[%clk
0:02:10.7]} 25... Bf4 {[%clk 0:02:40.4]} 26. Qh3 {[%clk 0:02:10.8]} 26... g5
{[%clk 0:02:34.6]} 27. hxg5 {[%clk 0:02:00.4]} 27... Qxg5 {[%clk 0:02:30]} 28.
Rd1 {[%clk 0:01:54.8]} 28... Rf8 {[%clk 0:02:27.1]} 29. Bf3 {[%clk 0:01:52.7]}
29... Rf6 {[%clk 0:02:25.8]} 30. Qh5 {[%clk 0:01:45.1]} 30... Qxh5 {[%clk
0:02:09.4]} 31. gxh5 {[%clk 0:01:45.6]} 31... Bc1 {[%clk 0:02:09.6]} 32. Rxc1
{[%clk 0:01:02.3]} 32... Rxf3 {[%clk 0:02:01.1]} 33. Rc3 {[%clk 0:01:03.2]}
33... Rf4 {[%clk 0:01:58.5]} 34. Rg3+ {[%clk 0:01:02.6]} 34... Kf7 {[%clk
0:01:57.5]} 35. h6 {[%clk 0:01:02.7]} 35... Rxe4 {[%clk 0:01:49.1]} 36. Rg7+
{[%clk 0:01:02.6]} 36... Kf6 {[%clk 0:01:49.7]} 37. Rxh7 {[%clk 0:00:58.3]}
37... Kg6 {[%clk 0:01:42.3]} 38. Rxc7 {[%clk 0:00:57.5]} 38... Kxh6 {[%clk
0:01:33]} 39. Rc6 {[%clk 0:00:58]} 39... Kg5 {[%clk 0:01:26.4]} 40. Rxd6 {[%clk
0:00:56]} 40... Rxa4 {[%clk 0:01:25.9]} 41. Rc6 {[%clk 0:00:55.9]} 41... Rb4
{[%clk 0:01:23.9]} 42. Rxc5 {[%clk 0:00:55.8]} 42... a4 {[%clk 0:01:19.9]} 43.
d6 {[%clk 0:00:53.1]} 43... Rxb2 {[%clk 0:01:19.3]} 44. Rxe5+ {[%clk 0:00:52.7]}
44... Kf6 {[%clk 0:01:17.7]} 45. Rd5 {[%clk 0:00:48.4]} 45... Ke6 {[%clk
0:00:42.3]} 46. d7 {[%clk 0:00:47.8]} 46... Kxd5 {[%clk 0:00:42.7]} 47. d8=Q+
{[%clk 0:00:47.7]} 47... Kc4 {[%clk 0:00:43.6]} 48. b6 {[%clk 0:00:42.7]} 48...
a3 {[%clk 0:00:42.8]} 49. Qc7+ {[%clk 0:00:42.8]} 49... Kd3 {[%clk 0:00:40.9]}
50. b7 {[%clk 0:00:40.8]} 50... a2 {[%clk 0:00:40.7]} 51. Qd6+ {[%clk
0:00:39.4]} 51... Ke2 {[%clk 0:00:39.6]} 52. Qe5+ {[%clk 0:00:38]} 1-0

[Event "*** Titled Tuesday Blitz"]
[Site "Chess.com"]
[Date "2020.11.10"]
[Round "9"]
[White "Radzio1987"]
[Black "IANOV0007"]
[Result "1-0"]
[WhiteElo "2759"]
[BlackElo "2449"]
[TimeControl "180+1"]
[EndTime "11:51:46 PST"]
[Termination "Radzio1987 won on time"]

1. e4 {[%clk 0:03:00.9]} 1... e5 {[%clk 0:02:58]} 2. Nf3 {[%clk 0:03:00.7]} 2...
d6 {[%clk 0:02:58]} 3. d4 {[%clk 0:02:58.8]} 3... exd4 {[%clk 0:02:57.8]} 4.
Nxd4 {[%clk 0:02:59.7]} 4... Nf6 {[%clk 0:02:57.5]} 5. Nc3 {[%clk 0:03:00.3]}
5... Be7 {[%clk 0:02:57.5]} 6. Be2 {[%clk 0:02:58.7]} 6... O-O {[%clk
0:02:56.8]} 7. O-O {[%clk 0:02:58.9]} 7... Re8 {[%clk 0:02:55.5]} 8. Re1 {[%clk
0:02:58.8]} 8... c6 {[%clk 0:02:54.1]} 9. a4 {[%clk 0:02:57.4]} 9... a5 {[%clk
0:02:53.3]} 10. Bf1 {[%clk 0:02:55.8]} 10... Na6 {[%clk 0:02:51.2]} 11. Bf4
{[%clk 0:02:55.3]} 11... Bf8 {[%clk 0:02:48.6]} 12. g3 {[%clk 0:02:45.7]} 12...
Nc5 {[%clk 0:02:37.4]} 13. Bg2 {[%clk 0:02:45.4]} 13... Qb6 {[%clk 0:02:32.3]}
14. b3 {[%clk 0:02:39.9]} 14... Bd7 {[%clk 0:02:23.5]} 15. Qd2 {[%clk
0:02:38.3]} 15... Rad8 {[%clk 0:02:22.3]} 16. Rad1 {[%clk 0:02:37.4]} 16... Bc8
{[%clk 0:02:21.7]} 17. h3 {[%clk 0:02:36.8]} 17... h6 {[%clk 0:02:19.8]} 18. g4
{[%clk 0:02:35]} 18... Qb4 {[%clk 0:02:12.1]} 19. Bg3 {[%clk 0:02:22.9]} 19...
g6 {[%clk 0:01:59.3]} 20. Kh1 {[%clk 0:02:21.5]} 20... Bg7 {[%clk 0:01:58.1]}
21. Re3 {[%clk 0:02:15.1]} 21... h5 {[%clk 0:01:50.5]} 22. g5 {[%clk 0:02:12.4]}
22... Nh7 {[%clk 0:01:50]} 23. h4 {[%clk 0:02:11.2]} 23... Bg4 {[%clk
0:01:43.6]} 24. f3 {[%clk 0:02:04]} 24... Bc8 {[%clk 0:01:42.2]} 25. Ree1 {[%clk
0:01:51.1]} 25... Nf8 {[%clk 0:01:39.5]} 26. Bf2 {[%clk 0:01:44.6]} 26... Nfe6
{[%clk 0:01:36.2]} 27. Nce2 {[%clk 0:01:35.8]} 27... Qxd2 {[%clk 0:01:12.5]} 28.
Rxd2 {[%clk 0:01:36.7]} 28... Nxd4 {[%clk 0:01:03.8]} 29. Nxd4 {[%clk
0:01:35.1]} 29... Be5 {[%clk 0:00:58.9]} 30. Red1 {[%clk 0:01:27.2]} 30... Bf4
{[%clk 0:00:57.5]} 31. Re2 {[%clk 0:01:27.4]} 31... Kg7 {[%clk 0:00:38.2]} 32.
Kg1 {[%clk 0:01:25.8]} 32... d5 {[%clk 0:00:31.8]} 33. Nxc6 {[%clk 0:01:17.4]}
33... bxc6 {[%clk 0:00:28.3]} 34. Bxc5 {[%clk 0:01:17.8]} 34... dxe4 {[%clk
0:00:23.2]} 35. Rxd8 {[%clk 0:01:17.4]} 35... Rxd8 {[%clk 0:00:22.5]} 36. Rxe4
{[%clk 0:01:17.9]} 36... Rd1+ {[%clk 0:00:19.6]} 37. Kf2 {[%clk 0:01:17.6]}
37... Bh2 {[%clk 0:00:17.8]} 38. Ke2 {[%clk 0:01:14.5]} 38... Rc1 {[%clk
0:00:14]} 39. Re8 {[%clk 0:01:14]} 39... Be6 {[%clk 0:00:12.1]} 40. Bd4+ {[%clk
0:01:13.2]} 40... f6 {[%clk 0:00:11.6]} 41. Rxe6 {[%clk 0:01:11.4]} 41... Rxc2+
{[%clk 0:00:09.7]} 42. Kf1 {[%clk 0:01:10.2]} 42... Bg3 {[%clk 0:00:06.7]} 43.
gxf6+ {[%clk 0:01:08.3]} 43... Kf7 {[%clk 0:00:04]} 44. Re7+ {[%clk 0:01:08.4]}
44... Kf8 {[%clk 0:00:04]} 45. Bh3 {[%clk 0:01:08.6]} 45... Bxh4 {[%clk
0:00:02.6]} 46. Be6 {[%clk 0:01:06.7]} 46... c5 {[%clk 0:00:01.4]} 47. Rc7
{[%clk 0:01:02.7]} 1-0

[Event "*** Titled Tuesday Blitz"]
[Site "Chess.com"]
[Date "2020.11.10"]
[Round "9"]
[White "wnstop"]
[Black "Iskusnyh"]
[Result "0-1"]
[WhiteElo "2697"]
[BlackElo "2573"]
[TimeControl "180+1"]
[EndTime "11:51:49 PST"]
[Termination "Iskusnyh won on time"]

1. e4 {[%clk 0:03:00.9]} 1... e6 {[%clk 0:02:59.1]} 2. d4 {[%clk 0:02:55.2]}
2... d5 {[%clk 0:02:59.4]} 3. Nd2 {[%clk 0:02:54.7]} 3... c5 {[%clk 0:02:58.4]}
4. exd5 {[%clk 0:02:54.3]} 4... Qxd5 {[%clk 0:02:57.1]} 5. dxc5 {[%clk
0:02:50.6]} 5... Nf6 {[%clk 0:02:55.8]} 6. Ngf3 {[%clk 0:02:49.5]} 6... Qxc5
{[%clk 0:02:55.6]} 7. Bd3 {[%clk 0:02:48.6]} 7... Nbd7 {[%clk 0:02:55.5]} 8. Qe2
{[%clk 0:02:47.4]} 8... Qc7 {[%clk 0:02:54.9]} 9. c3 {[%clk 0:02:46.7]} 9... Be7
{[%clk 0:02:52.3]} 10. O-O {[%clk 0:02:44.7]} 10... b6 {[%clk 0:02:51.8]} 11.
Ne4 {[%clk 0:02:41.8]} 11... Bb7 {[%clk 0:02:50.3]} 12. Nxf6+ {[%clk 0:02:36.4]}
12... Nxf6 {[%clk 0:02:45.6]} 13. Bb5+ {[%clk 0:02:33]} 13... Kf8 {[%clk
0:02:38.3]} 14. Bg5 {[%clk 0:02:15.6]} 14... Nd5 {[%clk 0:02:24.4]} 15. Bxe7+
{[%clk 0:01:53.8]} 15... Kxe7 {[%clk 0:02:21.1]} 16. Rad1 {[%clk 0:01:46.8]}
16... Rhd8 {[%clk 0:02:18]} 17. Qe4 {[%clk 0:00:56.1]} 17... Qf4 {[%clk
0:01:41.4]} 18. Qe5 {[%clk 0:00:12.4]} 18... Qxe5 {[%clk 0:01:00.9]} 19. Nxe5
{[%clk 0:00:13.3]} 19... Rac8 {[%clk 0:00:58.7]} 20. Rfe1 {[%clk 0:00:06.7]}
20... Rc5 {[%clk 0:00:53]} 21. Bf1 {[%clk 0:00:05.6]} 21... f6 {[%clk
0:00:48.5]} 22. Ng4 {[%clk 0:00:04.8]} 22... Rc7 {[%clk 0:00:44.6]} 23. g3
{[%clk 0:00:03.9]} 23... Rcd7 {[%clk 0:00:43.8]} 24. Bh3 {[%clk 0:00:03.8]}
24... Nc7 {[%clk 0:00:39.3]} 25. Rxd7+ {[%clk 0:00:03.4]} 25... Rxd7 {[%clk
0:00:39]} 26. Ne3 {[%clk 0:00:04.3]} 26... Rd2 {[%clk 0:00:37.2]} 27. Bxe6
{[%clk 0:00:01.8]} 27... Nxe6 {[%clk 0:00:34.9]} 28. Nf5+ {[%clk 0:00:02.2]}
28... Kf7 {[%clk 0:00:34.1]} 29. Kf1 {[%clk 0:00:01.6]} 29... Ba6+ {[%clk
0:00:30]} 30. Kg1 {[%clk 0:00:01.9]} 30... Nc5 {[%clk 0:00:26.6]} 31. b4 {[%clk
0:00:01.2]} 31... Nd3 {[%clk 0:00:24.1]} 32. Re7+ {[%clk 0:00:01.6]} 32... Kf8
{[%clk 0:00:24.1]} 0-1

[Event "*** Titled Tuesday Blitz"]
[Site "Chess.com"]
[Date "2020.11.10"]
[Round "9"]
[White "AsaHoffmann"]
[Black "Crazy_girl99"]
[Result "0-1"]
[WhiteElo "2380"]
[BlackElo "2500"]
[TimeControl "180+1"]
[EndTime "11:51:49 PST"]
[Termination "Crazy_girl99 won by resignation"]

1. d4 {[%clk 0:02:55.8]} 1... e6 {[%clk 0:02:59.3]} 2. e4 {[%clk 0:02:54.6]}
2... d5 {[%clk 0:02:57.2]} 3. e5 {[%clk 0:02:53.4]} 3... c5 {[%clk 0:02:57]} 4.
Nf3 {[%clk 0:02:51.8]} 4... Nc6 {[%clk 0:02:57.5]} 5. Bd3 {[%clk 0:02:48.2]}
5... cxd4 {[%clk 0:02:54.5]} 6. O-O {[%clk 0:02:45.2]} 6... Bd7 {[%clk
0:02:52.4]} 7. Bf4 {[%clk 0:02:43.5]} 7... Qb6 {[%clk 0:02:51.6]} 8. Nbd2 {[%clk
0:02:39.1]} 8... Nge7 {[%clk 0:02:49]} 9. a3 {[%clk 0:02:36.1]} 9... Ng6 {[%clk
0:02:48.2]} 10. Bg3 {[%clk 0:02:35.9]} 10... a5 {[%clk 0:02:48.5]} 11. h4 {[%clk
0:02:35.4]} 11... Bc5 {[%clk 0:02:43.7]} 12. Qe2 {[%clk 0:02:26.5]} 12... O-O
{[%clk 0:02:28.4]} 13. h5 {[%clk 0:02:25.3]} 13... Nge7 {[%clk 0:02:27.9]} 14.
h6 {[%clk 0:02:24.9]} 14... g6 {[%clk 0:02:20]} 15. Bh4 {[%clk 0:02:15]} 15...
Nf5 {[%clk 0:02:19.8]} 16. Bf6 {[%clk 0:02:11.8]} 16... Be7 {[%clk 0:02:14.9]}
17. g4 {[%clk 0:02:08.7]} 17... Nxh6 {[%clk 0:02:02]} 18. Ng5 {[%clk 0:01:41.3]}
18... Qd8 {[%clk 0:01:55.5]} 19. Bxe7 {[%clk 0:01:33.9]} 19... Qxe7 {[%clk
0:01:51.6]} 20. f4 {[%clk 0:01:33.4]} 20... Nxe5 {[%clk 0:01:29.9]} 21. Nxh7
{[%clk 0:01:21.5]} 21... Kxh7 {[%clk 0:01:24.2]} 22. Qxe5 {[%clk 0:01:13.7]}
22... Nxg4 {[%clk 0:01:21.5]} 23. Qe1 {[%clk 0:01:02.3]} 23... Ne3 {[%clk
0:01:17.5]} 24. Qg3 {[%clk 0:00:56.9]} 24... Nxf1 {[%clk 0:01:11.4]} 25. Rxf1
{[%clk 0:00:56]} 25... Kg7 {[%clk 0:01:11.7]} 26. Nf3 {[%clk 0:00:54]} 26... Rh8
{[%clk 0:01:11.7]} 27. Kf2 {[%clk 0:00:47.7]} 27... Rh6 {[%clk 0:01:09]} 28. Rg1
{[%clk 0:00:47.5]} 28... Rah8 {[%clk 0:01:08.6]} 29. Nxd4 {[%clk 0:00:27.7]}
29... Rh3 {[%clk 0:00:58.3]} 30. Qg4 {[%clk 0:00:25.9]} 30... Qh4+ {[%clk
0:00:55.2]} 31. Qxh4 {[%clk 0:00:24.9]} 31... R8xh4 {[%clk 0:00:56.1]} 32. Ne2
{[%clk 0:00:12.8]} 32... Rh2+ {[%clk 0:00:51.4]} 33. Ke3 {[%clk 0:00:12.3]}
33... Kf6 {[%clk 0:00:47.2]} 34. Kd4 {[%clk 0:00:12.2]} 34... b6 {[%clk
0:00:47.1]} 35. b4 {[%clk 0:00:11.4]} 35... axb4 {[%clk 0:00:46.6]} 36. axb4
{[%clk 0:00:11.4]} 36... Ke7 {[%clk 0:00:47.1]} 37. Ke5 {[%clk 0:00:10.6]} 37...
Rh5+ {[%clk 0:00:40.2]} 38. Kd4 {[%clk 0:00:10.2]} 38... Kd6 {[%clk 0:00:39.9]}
39. b5 {[%clk 0:00:09.9]} 39... R5h4 {[%clk 0:00:38.9]} 40. Kc3 {[%clk
0:00:09.2]} 40... R4h3 {[%clk 0:00:35.7]} 41. Kd4 {[%clk 0:00:08.6]} 41... Rxd3+
{[%clk 0:00:34.6]} 42. Kxd3 {[%clk 0:00:07.1]} 42... Bxb5+ {[%clk 0:00:34.6]}
0-1

[Event "*** Titled Tuesday Blitz"]
[Site "Chess.com"]
[Date "2020.11.10"]
[Round "9"]
[White "IceBelka"]
[Black "No_t_ime_to_die"]
[Result "1-0"]
[WhiteElo "2350"]
[BlackElo "2466"]
[TimeControl "180+1"]
[EndTime "11:51:53 PST"]
[Termination "IceBelka won by resignation"]

1. e4 {[%clk 0:03:00.9]} 1... c5 {[%clk 0:02:58.8]} 2. Nf3 {[%clk 0:02:58.9]}
2... Nc6 {[%clk 0:02:57.9]} 3. d4 {[%clk 0:02:58]} 3... cxd4 {[%clk 0:02:58.8]}
4. Nxd4 {[%clk 0:02:58.3]} 4... g6 {[%clk 0:02:53.5]} 5. Nc3 {[%clk 0:02:56.2]}
5... Bg7 {[%clk 0:02:52.7]} 6. Be3 {[%clk 0:02:56.6]} 6... Nf6 {[%clk
0:02:53.2]} 7. Bc4 {[%clk 0:02:56.9]} 7... O-O {[%clk 0:02:53.4]} 8. Bb3 {[%clk
0:02:56.6]} 8... Re8 {[%clk 0:02:51.6]} 9. f3 {[%clk 0:02:43.7]} 9... e6 {[%clk
0:02:47.6]} 10. f4 {[%clk 0:02:43]} 10... d6 {[%clk 0:02:46.8]} 11. Qf3 {[%clk
0:02:37.4]} 11... e5 {[%clk 0:02:33]} 12. Nxc6 {[%clk 0:02:30]} 12... bxc6
{[%clk 0:02:31.5]} 13. fxe5 {[%clk 0:02:22]} 13... dxe5 {[%clk 0:02:09.2]} 14.
O-O {[%clk 0:02:18.9]} 14... Be6 {[%clk 0:01:53.8]} 15. Bg5 {[%clk 0:01:57.5]}
15... Bxb3 {[%clk 0:01:45.5]} 16. axb3 {[%clk 0:01:58.4]} 16... Re6 {[%clk
0:01:45.5]} 17. Kh1 {[%clk 0:01:30.9]} 17... h6 {[%clk 0:01:43.1]} 18. Be3
{[%clk 0:01:28.3]} 18... Qe7 {[%clk 0:01:36.2]} 19. Na4 {[%clk 0:01:23.1]} 19...
Nd7 {[%clk 0:01:32.1]} 20. Rad1 {[%clk 0:01:19.2]} 20... Rf6 {[%clk 0:01:28.6]}
21. Qh3 {[%clk 0:01:16]} 21... Rxf1+ {[%clk 0:01:05.2]} 22. Rxf1 {[%clk
0:01:16.9]} 22... Kh7 {[%clk 0:01:02.8]} 23. Qf3 {[%clk 0:01:14.3]} 23... Nf6
{[%clk 0:00:55.8]} 24. Nc5 {[%clk 0:01:08.3]} 24... Rd8 {[%clk 0:00:53.2]} 25.
Nd3 {[%clk 0:01:07.8]} 25... Rd7 {[%clk 0:00:46.8]} 26. Bc5 {[%clk 0:00:59.7]}
26... Qe6 {[%clk 0:00:46.7]} 27. Ra1 {[%clk 0:00:57.6]} 27... Qe8 {[%clk
0:00:21.6]} 28. h3 {[%clk 0:00:51.6]} 28... Qb8 {[%clk 0:00:20.1]} 29. Qe3
{[%clk 0:00:48.7]} 29... Bf8 {[%clk 0:00:17.2]} 30. Bxa7 {[%clk 0:00:40.5]}
30... Qa8 {[%clk 0:00:15.9]} 31. Ra4 {[%clk 0:00:40.3]} 31... Qe8 {[%clk
0:00:12]} 32. Bc5 {[%clk 0:00:38.5]} 32... Bxc5 {[%clk 0:00:08.4]} 33. Qxc5
{[%clk 0:00:39.4]} 33... Rd4 {[%clk 0:00:06.2]} 34. Qxe5 {[%clk 0:00:35.1]}
34... Qxe5 {[%clk 0:00:05.9]} 35. Nxe5 {[%clk 0:00:34.5]} 35... Rxa4 {[%clk
0:00:06.5]} 36. bxa4 {[%clk 0:00:34.1]} 36... Nxe4 {[%clk 0:00:07.2]} 37. a5
{[%clk 0:00:32.9]} 37... Nc5 {[%clk 0:00:04.7]} 38. Nxc6 {[%clk 0:00:31.6]}
38... Kg7 {[%clk 0:00:04.6]} 39. b4 {[%clk 0:00:31.8]} 1-0

[Event "*** Titled Tuesday Blitz"]
[Site "Chess.com"]
[Date "2020.11.10"]
[Round "9"]
[White "MarcoRiehle"]
[Black "esapunov"]
[Result "0-1"]
[WhiteElo "2673"]
[BlackElo "2720"]
[TimeControl "180+1"]
[EndTime "11:51:54 PST"]
[Termination "esapunov won by resignation"]

1. e4 {[%clk 0:03:00.9]} 1... c5 {[%clk 0:02:59.6]} 2. a3 {[%clk 0:03:00.7]}
2... e6 {[%clk 0:02:55.7]} 3. b4 {[%clk 0:03:00.3]} 3... b6 {[%clk 0:02:56.2]}
4. Bb2 {[%clk 0:02:51.3]} 4... Bb7 {[%clk 0:02:55.2]} 5. bxc5 {[%clk 0:02:49.1]}
5... Bxe4 {[%clk 0:02:51.1]} 6. cxb6 {[%clk 0:02:32]} 6... Qxb6 {[%clk
0:02:50.6]} 7. Bc3 {[%clk 0:02:29.9]} 7... Nf6 {[%clk 0:02:49.5]} 8. Nf3 {[%clk
0:02:28.1]} 8... Nc6 {[%clk 0:02:41.5]} 9. d4 {[%clk 0:02:24.4]} 9... Nd5 {[%clk
0:02:34.6]} 10. Be2 {[%clk 0:02:13.3]} 10... Be7 {[%clk 0:02:20.7]} 11. O-O
{[%clk 0:02:05.5]} 11... O-O {[%clk 0:02:20.4]} 12. Ra2 {[%clk 0:01:57.3]} 12...
Rab8 {[%clk 0:02:11.8]} 13. Ba1 {[%clk 0:01:47.7]} 13... Nf4 {[%clk 0:02:07]}
14. Nbd2 {[%clk 0:01:41.6]} 14... Bg6 {[%clk 0:01:40.6]} 15. Nc4 {[%clk
0:01:30.7]} 15... Qa6 {[%clk 0:01:37.8]} 16. Re1 {[%clk 0:01:21.3]} 16... Nxe2+
{[%clk 0:01:37.3]} 17. Qxe2 {[%clk 0:01:21.1]} 17... Bf6 {[%clk 0:01:30.7]} 18.
h3 {[%clk 0:01:13.8]} 18... Rfc8 {[%clk 0:01:26.9]} 19. Nd6 {[%clk 0:01:04.4]}
19... Qxe2 {[%clk 0:01:26.1]} 20. Rxe2 {[%clk 0:01:04.9]} 20... Rd8 {[%clk
0:01:23.9]} 21. Rb2 {[%clk 0:01:01]} 21... Rxb2 {[%clk 0:01:21.9]} 22. Bxb2
{[%clk 0:01:01.9]} 22... Be7 {[%clk 0:01:19.7]} 23. Nb5 {[%clk 0:00:46.8]} 23...
Rb8 {[%clk 0:01:17.6]} 24. c4 {[%clk 0:00:46.6]} 24... Bd3 {[%clk 0:01:15.2]}
25. Rd2 {[%clk 0:00:44.5]} 25... Bxc4 {[%clk 0:01:15.3]} 26. Nc3 {[%clk
0:00:44.2]} 26... d5 {[%clk 0:01:12.7]} 27. g4 {[%clk 0:00:38.1]} 27... h6
{[%clk 0:01:12.5]} 28. Nd1 {[%clk 0:00:37.6]} 28... Bf6 {[%clk 0:01:08.6]} 29.
Ne3 {[%clk 0:00:37.3]} 29... Rb3 {[%clk 0:01:07.7]} 30. Rc2 {[%clk 0:00:33]}
30... Na5 {[%clk 0:01:06]} 31. Kg2 {[%clk 0:00:30.3]} 31... Kh7 {[%clk 0:01:05]}
32. h4 {[%clk 0:00:29.8]} 32... Bd3 {[%clk 0:01:01.5]} 33. Rd2 {[%clk
0:00:29.4]} 33... Be4 {[%clk 0:01:01.5]} 34. Bc1 {[%clk 0:00:20.5]} 34... Nc4
{[%clk 0:01:00.8]} 35. Re2 {[%clk 0:00:19.9]} 35... Bxd4 {[%clk 0:00:59.1]} 36.
g5 {[%clk 0:00:19.2]} 36... hxg5 {[%clk 0:00:58]} 37. hxg5 {[%clk 0:00:18.9]}
37... Bxe3 {[%clk 0:00:58.2]} 38. fxe3 {[%clk 0:00:18.9]} 38... Ne5 {[%clk
0:00:57.7]} 39. g6+ {[%clk 0:00:16.7]} 39... Kxg6 {[%clk 0:00:56.8]} 40. Kf2
{[%clk 0:00:17.5]} 40... Nxf3 {[%clk 0:00:57]} 41. a4 {[%clk 0:00:16]} 41... f6
{[%clk 0:00:57.2]} 42. Ra2 {[%clk 0:00:16]} 42... a6 {[%clk 0:00:54.9]} 43. a5
{[%clk 0:00:16.3]} 43... e5 {[%clk 0:00:55.3]} 44. Bb2 {[%clk 0:00:15.8]} 44...
Kf5 {[%clk 0:00:55.1]} 45. Ba3 {[%clk 0:00:16]} 45... g5 {[%clk 0:00:54.9]} 46.
Ra1 {[%clk 0:00:16.1]} 46... g4 {[%clk 0:00:54.9]} 47. Be7 {[%clk 0:00:16.5]}
47... Rb2+ {[%clk 0:00:54]} 48. Kg3 {[%clk 0:00:15.1]} 48... Ng5 {[%clk
0:00:53.2]} 49. Rg1 {[%clk 0:00:14]} 49... Bf3 {[%clk 0:00:52.4]} 50. Rc1 {[%clk
0:00:11]} 50... Ne4+ {[%clk 0:00:52.5]} 0-1

[Event "*** Titled Tuesday Blitz"]
[Site "Chess.com"]
[Date "2020.11.10"]
[Round "9"]
[White "Matibar"]
[Black "Zhigalko_Sergei"]
[Result "0-1"]
[WhiteElo "2776"]
[BlackElo "2923"]
[TimeControl "180+1"]
[EndTime "11:51:55 PST"]
[Termination "Zhigalko_Sergei won on time"]

1. e4 {[%clk 0:02:37.4]} 1... c5 {[%clk 0:02:59.8]} 2. Nf3 {[%clk 0:02:34.5]}
2... Nc6 {[%clk 0:02:59.9]} 3. Nc3 {[%clk 0:02:32.7]} 3... Nf6 {[%clk
0:02:59.8]} 4. Bb5 {[%clk 0:02:31.2]} 4... Qc7 {[%clk 0:02:59.8]} 5. O-O {[%clk
0:02:26.4]} 5... Nd4 {[%clk 0:03:00.1]} 6. h3 {[%clk 0:02:24.4]} 6... a6 {[%clk
0:02:51.9]} 7. Be2 {[%clk 0:02:22.9]} 7... e6 {[%clk 0:02:50.4]} 8. Re1 {[%clk
0:02:22.6]} 8... Bd6 {[%clk 0:02:44.9]} 9. Bf1 {[%clk 0:02:20.5]} 9... O-O
{[%clk 0:02:37]} 10. d3 {[%clk 0:02:13.3]} 10... Nxf3+ {[%clk 0:02:31.2]} 11.
Qxf3 {[%clk 0:02:14.2]} 11... Be5 {[%clk 0:02:24.9]} 12. g4 {[%clk 0:01:45.9]}
12... b5 {[%clk 0:02:04.4]} 13. Ne2 {[%clk 0:01:30.5]} 13... Bb7 {[%clk
0:01:40.6]} 14. g5 {[%clk 0:01:16.8]} 14... Ne8 {[%clk 0:01:38.8]} 15. Qg2
{[%clk 0:01:13]} 15... f5 {[%clk 0:01:24.1]} 16. f4 {[%clk 0:01:10.9]} 16... Bd6
{[%clk 0:01:22.7]} 17. Qf3 {[%clk 0:00:59.7]} 17... c4 {[%clk 0:01:08.1]} 18.
Bg2 {[%clk 0:00:59.2]} 18... Bc5+ {[%clk 0:00:53.5]} 19. Kh1 {[%clk 0:00:49.4]}
19... Nd6 {[%clk 0:00:53]} 20. Ng3 {[%clk 0:00:46.6]} 20... Rf7 {[%clk
0:00:40.1]} 21. Qe2 {[%clk 0:00:45.3]} 21... fxe4 {[%clk 0:00:33.7]} 22. dxe4
{[%clk 0:00:45.1]} 22... Raf8 {[%clk 0:00:34.1]} 23. Rf1 {[%clk 0:00:45.2]}
23... g6 {[%clk 0:00:28.4]} 24. c3 {[%clk 0:00:44.3]} 24... e5 {[%clk 0:00:22]}
25. f5 {[%clk 0:00:38.3]} 25... gxf5 {[%clk 0:00:21.5]} 26. Qh5 {[%clk
0:00:14.6]} 26... f4 {[%clk 0:00:16.4]} 27. Ne2 {[%clk 0:00:03.4]} 27... Nxe4
{[%clk 0:00:16.6]} 28. Kh2 {[%clk 0:00:02.9]} 28... Rg7 {[%clk 0:00:14.1]} 29.
h4 {[%clk 0:00:02.7]} 29... d5 {[%clk 0:00:13.2]} 30. b4 {[%clk 0:00:01.9]}
30... Bd6 {[%clk 0:00:12.1]} 0-1